[Event "Portuguese-ch U14-20 2022"]
[Site "Fatima"]
[Date "2022.04.11"]
[Round "3.10"]
[White "Abdurramane, Danial Germano"]
[Black "Pipiras, Filipa Fortuna"]
[Result "0-1"]
[ECO "D04"]
[WhiteElo "1772"]
[BlackElo "2000"]
[Annotator "RC"]
[PlyCount "64"]
[EventDate "2022.04.10"]
[EventType "swiss"]
[EventCountry "POR"]
[SourceTitle "playchess.com"]
[Source "ChessBase"]
[SourceQuality "1"]
[TimeControl "5400+30"]

1. d4 {[%emt 0:00:05]} d5 {[%emt 0:06:22]} 2. Nf3 {[%emt 0:00:06]} Nf6 {[%emt 0:00:35]} 3. e3 {[%emt 0:00:11]} c5 {[%emt 0:00:32]} 4. b3 {[%emt 0:01:17]} cxd4 {[%emt 0:01:12]} 5. exd4 {[%emt 0:00:36]} Nc6 {[%emt 0:00:22]} 6. Bd3 {[%emt 0:04:42]} Bg4 {[%emt 0:01:42]} 7. Bb2 {[%emt 0:07:11]} e6 {[%emt 0:03:33]} 8. O-O {[%emt 0:01:50]} Bd6 {[%emt 0:01:20]} 9. Nbd2 {[%emt 0:01:53]} O-O {[%emt 0:03:06]} 10. c4 {[%emt 0:01:29]} Rc8 {[%emt 0:03:05]} 11. Rc1 {[%emt 0:01:51]} Bf4 {[%emt 0:04:19]} 12. Be2 {[%emt 0:11:52]} Ne4 {[%emt 0:08:18]} 13. cxd5 {[%emt 0:08:41]} Bxf3 {[%emt 0:11:03]} 14. Bxf3 {[%emt 0:05:33]} Nxd2 {[%emt 0:03:04]} 15. dxc6 {[%emt 0:00:32]} Nxf3+ {[%emt 0:00:55]} 16. Qxf3 {[%emt 0:01:30]} Bxc1 {[%emt 0:00:11]} 17. Rxc1 {[%emt 0:00:52]} Rxc6 {[%emt 0:01:10]} 18. Rxc6 {[%emt 0:00:48]} bxc6 {[%emt 0:00:04]} 19. Qxc6 {[%emt 0:00:28]} Qa5 {[%emt 0:00:12]} 20. g3 {[%emt 0:03:42]} Qxa2 {[%emt 0:01:58]} 21. Qc3 {[%emt 0:00:08]} Qb1+ {[%emt 0:00:17]} 22. Kg2 {[%emt 0:00:11]} Qe4+ {[%emt 0:00:08]} 23. Kg1 {[%emt 0:00:17]} Qd5 {[%emt 0:00:38]} 24. Ba3 {[%emt 0:01:28]} Rb8 {[%emt 0:01:05]} 25. Qc7 {[%emt 0:00:48]} Qxb3 {[%emt 0:00:13]} 26. Qxa7 {[%emt 0:00:56]} h6 {[%emt 0:02:37]} 27. Qc5 {[%emt 0:03:02]} Ra8 {[%emt 0:04:57]} 28. Bb4 {[%emt 0:01:02]} Qb1+ {[%emt 0:00:26]} 29. Kg2 {[%emt 0:00:11]} Qe4+ {[%emt 0:00:05]} 30. Kh3 {[%emt 0:01:02]} Qf3 {[%emt 0:00:44]} 31. Qc2 {[%emt 0:01:16]} Rd8 {[%emt 0:00:39]} 32. Bc5 {[%emt 0:01:14]} Rd5 {[%emt 0:01:03]} 0-1

[Event "Portuguese-ch U14-20 2022"]
[Site "Fatima"]
[Date "2022.04.11"]
[Round "3.11"]
[White "Gomes, Estevao Manuel"]
[Black "Vidal Torres, Ricardo"]
[Result "1/2-1/2"]
[ECO "B40"]
[WhiteElo "2047"]
[BlackElo "2332"]
[Annotator "RC"]
[PlyCount "71"]
[EventDate "2022.04.10"]
[EventType "swiss"]
[EventCountry "POR"]
[SourceTitle "playchess.com"]
[Source "ChessBase"]
[SourceQuality "1"]
[TimeControl "5400+30"]

1. e4 {[%emt 0:00:08]} c5 {[%emt 0:00:06]} 2. Nf3 {[%emt 0:00:03]} e6 {[%emt 0:00:04]} 3. d4 {[%emt 0:00:05]} cxd4 {[%emt 0:00:05]} 4. Nxd4 {[%emt 0:00:04]} Nf6 {[%emt 0:00:10]} 5. Nc3 {[%emt 0:00:04]} Nc6 {[%emt 0:00:05]} 6. Ndb5 {[%emt 0:00:15]} Bb4 {[%emt 0:00:13]} 7. a3 {[%emt 0:03:11]} Bxc3+ {[%emt 0:00:07]} 8. Nxc3 {[%emt 0:00:06]} d5 {[%emt 0:00:04]} 9. exd5 {[%emt 0:00:39]} exd5 {[%emt 0:00:06]} 10. Bg5 {[%emt 0:02:52]} O-O {[%emt 0:01:01]} 11. Be2 {[%emt 0:00:17]} d4 {[%emt 0:03:45]} 12. Ne4 {[%emt 0:01:48]} Qa5+ {[%emt 0:01:30]} 13. Bd2 {[%emt 0:01:44]} Qf5 {[%emt 0:02:09]} 14. Nxf6+ {[%emt 0:05:32]} Qxf6 {[%emt 0:00:11]} 15. O-O {[%emt 0:00:11]} Bf5 {[%emt 0:04:34]} 16. Bb4 {[%emt 0:13:03]} Rfe8 {[%emt 0:06:46]} 17. Bd3 {[%emt 0:05:19]} Rad8 {[%emt 0:03:34]} 18. Rc1 {[%emt 0:13:25]} Ne5 {[%emt 0:15:15]} 19. Bb5 {[%emt 0:09:24]} Nc6 {[%emt 0:01:03]} 20. Re1 {[%emt 0:02:51]} Re5 {[%emt 0:07:35]} 21. Ba4 {[%emt 0:15:59]} Rde8 {[%emt 0:07:58]} 22. Qd2 {[%emt 0:06:34]} Qd8 {[%emt 0:11:05]} 23. Qf4 {[%emt 0:08:01]} Rxe1+ {[%emt 0:03:20]} 24. Rxe1 {[%emt 0:00:17]} Rxe1+ {[%emt 0:00:08]} 25. Bxe1 {[%emt 0:00:01]} Bg6 {[%emt 0:00:22]} 26. h3 {[%emt 0:00:59]} h6 {[%emt 0:02:06]} 27. Bb4 {[%emt 0:00:06]} Nxb4 {[%emt 0:07:16]} 28. axb4 {[%emt 0:05:24]} Qb6 29. Bb3 Qxb4 {[%emt 0:02:05]} 30. Qb8+ {[%emt 0:02:54]} Kh7 {[%emt 0:00:35]} 31. Qe8 {[%emt 0:00:50]} d3 {[%emt 0:05:39]} 32. Bxf7 {[%emt 0:00:05]} Bxf7 {[%emt 0:00:10]} 33. Qxf7 {[%emt 0:00:01]} d2 {[%emt 0:01:05]} 34. Qf5+ {[%emt 0:00:08]} Kg8 {[%emt 0:02:45]} 35. Qd5+ {[%emt 0:00:28]} Kh7 36. Qf5+ 1/2-1/2

[Event "Portuguese-ch U14-20 2022"]
[Site "Fatima"]
[Date "2022.04.11"]
[Round "3.12"]
[White "Gama, Joao Tiago"]
[Black "Sismeiro, Miguel"]
[Result "0-1"]
[ECO "B12"]
[WhiteElo "1637"]
[BlackElo "2201"]
[Annotator "RC"]
[PlyCount "60"]
[EventDate "2022.04.10"]
[EventType "swiss"]
[EventCountry "POR"]
[SourceTitle "playchess.com"]
[Source "ChessBase"]
[SourceQuality "1"]
[TimeControl "5400+30"]

1. e4 c6 2. d4 g6 3. Be3 Bg7 4. Nf3 d5 5. Nc3 dxe4 6. Nxe4 Nf6 7. Nxf6+ exf6 8. Bc4 O-O 9. O-O a5 10. a4 Na6 11. c3 Nc7 12. Qd2 Bg4 13. Be2 Nd5 14. Bh6 Qd6 15. Bxg7 Kxg7 16. h3 Bd7 17. Rfe1 Rfe8 18. Bf1 b6 19. Qc2 Nf4 20. Rad1 Bf5 21. Qb3 Qc7 22. Bc4 Be4 23. Re3 Nd5 24. Bxd5 Bxd5 25. Qc2 Rxe3 26. fxe3 Re8 27. Kf2 b5 28. Nd2 Qh2 29. Nf3 Qd6 30. b3 Qe6 0-1

[Event "Portuguese-ch U14-20 2022"]
[Site "Fatima"]
[Date "2022.04.11"]
[Round "3.13"]
[White "Goncalves, Samuel Jesus P"]
[Black "Ribeiro, Rodrigo"]
[Result "0-1"]
[ECO "D11"]
[WhiteElo "1807"]
[BlackElo "1866"]
[Annotator "NA RC"]
[PlyCount "70"]
[EventDate "2022.04.10"]
[EventType "swiss"]
[EventCountry "POR"]
[SourceTitle "playchess.com"]
[Source "ChessBase"]
[SourceQuality "1"]
[TimeControl "5400+30"]

1. d4 {[%emt 0:01:40]} d5 {[%emt 0:00:06]} 2. c4 {[%emt 0:00:03]} c6 {[%emt 0:00:13]} 3. Nf3 {[%emt 0:02:57]} Nf6 {[%emt 0:01:38]} 4. g3 {[%emt 0:00:20]} dxc4 {[%emt 0:02:37]} 5. Bg2 {[%emt 0:00:07]} b5 {[%emt 0:10:31]} 6. Ne5 {[%emt 0:06:05]} Bb7 {[%emt 0:00:19]} 7. a4 {[%emt 0:01:28]} Qc8 {[%emt 0:01:45]} 8. b3 {[%emt 0:00:46]} c5 {[%emt 0:04:49]} 9. Bxb7 {[%emt 0:03:31]} Qxb7 {[%emt 0:00:06]} 10. O-O {[%emt 0:00:09]} b4 {[%emt 0:26:07]} 11. Nxc4 {[%emt 0:04:24]} cxd4 {[%emt 0:01:31]} 12. Qxd4 {[%emt 0:00:22]} Nc6 {[%emt 0:00:10]} 13. Qf4 {[%emt 0:00:49]} g6 {[%emt 0:06:40]} 14. Bb2 {[%emt 0:05:10]} Rd8 {[%emt 0:11:00]} 15. Rc1 {[%emt 0:03:11]} Bg7 {[%emt 0:05:30]} 16. Qf3 {[%emt 0:00:13]} Qd7 $11 {[%emt 0:02:33]} 17. Nbd2 {[%emt 0:09:48]} O-O {[%emt 0:04:12]} 18. Rd1 {[%emt 0:06:03]} Nd4 {[%emt 0:01:22]} 19. Qd3 {[%emt 0:02:12]} Qh3 {[%emt 0:09:12]} 20. f3 {[%emt 0:06:53]} Nf5 {[%emt 0:02:15]} 21. Qc2 {[%emt 0:00:27]} Nd5 {[%emt 0:01:10]} 22. Nf1 {[%emt 0:00:53]} Bxb2 {[%emt 0:04:00]} 23. Qxb2 {[%emt 0:01:00]} Nc3 {[%emt 0:00:05]} 24. Rd2 {[%emt 0:00:28]} Nd4 {[%emt 0:02:28]} 25. Kf2 {[%emt 0:01:39]} Qf5 {[%emt 0:00:38]} 26. Nfe3 {[%emt 0:00:28]} Qh5 {[%emt 0:00:38]} 27. Kg1 {[%emt 0:06:03]} f5 {[%emt 0:01:45]} 28. Re1 {[%emt 0:01:53]} f4 {[%emt 0:00:36]} 29. g4 {[%emt 0:01:22]} Qc5 {[%emt 0:00:05]} 30. Kg2 {[%emt 0:05:25]} fxe3 {[%emt 0:00:22]} 31. Nxe3 {[%emt 0:00:02]} Ne6 {[%emt 0:01:02]} 32. Nc4 {[%emt 0:00:31]} Nf4+ {[%emt 0:00:10]} 33. Kg3 {[%emt 0:00:42]} Qc7 {[%emt 0:00:10]} 34. Kf2 {[%emt 0:00:04]} Ne4+ {[%emt 0:00:29]} 35. fxe4 {[%emt 0:01:45]} Nd3+ {[%emt 0:00:06]} 0-1

[Event "Portuguese-ch U14-20 2022"]
[Site "Fatima"]
[Date "2022.04.11"]
[Round "3.14"]
[White "Simoes, Miguel Patricio"]
[Black "Sousa, Ricardo Miguel Morai"]
[Result "1-0"]
[ECO "B11"]
[WhiteElo "2001"]
[BlackElo "2077"]
[Annotator "NA RC"]
[PlyCount "49"]
[EventDate "2022.04.10"]
[EventType "swiss"]
[EventCountry "POR"]
[SourceTitle "playchess.com"]
[Source "ChessBase"]
[SourceQuality "1"]
[TimeControl "5400+30"]

1. e4 {[%emt 0:00:02]} c6 {[%emt 0:00:56]} 2. Nc3 {[%emt 0:00:35]} d5 {[%emt 0:00:06]} 3. Nf3 {[%emt 0:00:34]} Bg4 {[%emt 0:00:14]} 4. h3 {[%emt 0:01:42]} Bxf3 {[%emt 0:00:26]} 5. Qxf3 {[%emt 0:00:08]} e6 {[%emt 0:00:16]} 6. d4 {[%emt 0:05:13]} Nf6 {[%emt 0:01:10]} 7. e5 {[%emt 0:04:17]} Nfd7 {[%emt 0:00:21]} 8. Bf4 {[%emt 0:33:05]} c5 {[%emt 0:06:07]} 9. dxc5 {[%emt 0:01:34]} Bxc5 {[%emt 0:00:51]} 10. Qg3 {[%emt 0:02:36]} Rg8 {[%emt 0:10:02]} 11. O-O-O {[%emt 0:02:32]} Nc6 {[%emt 0:06:06]} 12. Bb5 {[%emt 0:05:56]} a6 {[%emt 0:04:11]} 13. Ba4 {[%emt 0:01:51]} Qa5 {[%emt 0:26:13]} 14. Bb3 {[%emt 0:07:00]} O-O-O {[%emt 0:04:16]} 15. Bd2 {[%emt 0:01:36]} Qc7 {[%emt 0:01:37]} 16. f4 $15 {[%emt 0:00:19]} Nb6 {[%emt 0:07:57]} 17. Rhf1 {[%emt 0:02:52]} Nc4 {[%emt 0:03:29]} 18. Bxc4 {[%emt 0:00:54]} dxc4 {[%emt 0:00:02]} 19. Be3 {[%emt 0:01:43]} Bxe3+ {[%emt 0:01:15]} 20. Qxe3 {[%emt 0:00:03]} g5 {[%emt 0:02:54]} 21. g3 {[%emt 0:04:54]} gxf4 {[%emt 0:00:08]} 22. gxf4 {[%emt 0:00:19]} Ne7 {[%emt 0:01:17]} 23. Qa7 {[%emt 0:01:42]} Qc6 {[%emt 0:06:02]} 24. Rg1 {[%emt 0:05:29]} Rxg1 {[%emt 0:04:04]} 25. Qa8+ {[%emt 0:00:15]} 1-0

[Event "Portuguese-ch U14-20 2022"]
[Site "Fatima"]
[Date "2022.04.11"]
[Round "3.15"]
[White "Pina, Tiago"]
[Black "Soares, Luis Francisco Almei"]
[Result "0-1"]
[ECO "E36"]
[WhiteElo "1938"]
[BlackElo "2000"]
[Annotator "NA RC"]
[PlyCount "114"]
[EventDate "2022.04.10"]
[EventType "swiss"]
[EventCountry "POR"]
[SourceTitle "playchess.com"]
[Source "ChessBase"]
[SourceQuality "1"]
[TimeControl "5400+30"]

1. d4 {[%emt 0:00:03]} Nf6 {[%emt 0:00:14]} 2. c4 {[%emt 0:00:08]} e6 {[%emt 0:00:08]} 3. Nc3 {[%emt 0:00:16]} Bb4 {[%emt 0:00:06]} 4. Qc2 {[%emt 0:00:17]} d5 {[%emt 0:00:51]} 5. a3 {[%emt 0:00:28]} Bxc3+ {[%emt 0:00:20]} 6. Qxc3 {[%emt 0:00:11]} O-O {[%emt 0:00:21]} 7. Bg5 {[%emt 0:00:39]} Nbd7 {[%emt 0:01:36]} 8. e3 {[%emt 0:01:07]} b6 {[%emt 0:01:21]} 9. cxd5 {[%emt 0:00:46]} exd5 {[%emt 0:03:18]} 10. Nf3 {[%emt 0:01:24]} h6 {[%emt 0:00:33]} 11. Bh4 {[%emt 0:01:39]} c5 {[%emt 0:01:04]} 12. dxc5 {[%emt 0:03:41]} (12. Bb5 $142) 12... Nxc5 {[%emt 0:01:11]} 13. Bxf6 {[%emt 0:00:50]} Qxf6 {[%emt 0:00:03]} 14. Qxf6 {[%emt 0:00:13]} gxf6 {[%emt 0:00:02]} 15. Nd4 {[%emt 0:00:33]} Be6 {[%emt 0:03:58]} 16. f3 {[%emt 0:05:50]} a5 {[%emt 0:01:43]} 17. Kd2 {[%emt 0:03:01]} ({Better is} 17. Bb5) 17... Rfc8 {[%emt 0:02:18]} 18. Be2 {[%emt 0:03:38]} a4 {[%emt 0:06:40]} 19. Rac1 {[%emt 0:03:27]} Kf8 {[%emt 0:02:05]} 20. Rc3 {[%emt 0:07:23]} Ke7 {[%emt 0:06:36]} 21. g4 {[%emt 0:02:05]} h5 {[%emt 0:05:59]} 22. h3 {[%emt 0:12:56]} Rh8 {[%emt 0:00:43]} 23. Rcc1 {[%emt 0:01:23]} Rh6 {[%emt 0:03:02]} 24. Kc3 {[%emt 0:13:43]} Kd6 $14 {[%emt 0:04:20]} 25. Kb4 {[%emt 0:03:56]} Bd7 {[%emt 0:01:27]} 26. Bb5 {[%emt 0:10:06]} Rah8 {[%emt 0:17:28]} 27. Nf5+ {[%emt 0:06:33]} Bxf5 {[%emt 0:00:13]} 28. gxf5 {[%emt 0:00:00]} Ke5 {[%emt 0:02:02]} 29. Rcd1 {[%emt 0:01:33]} Rd8 {[%emt 0:02:05]} 30. Bxa4 {[%emt 0:04:04]} Kxf5 {[%emt 0:00:14]} 31. Bc6 {[%emt 0:01:23]} Ke5 {[%emt 0:04:08]} 32. e4 {[%emt 0:01:31]} d4 {[%emt 0:01:17]} 33. Kb5 {[%emt 0:03:41]} Rd6 {[%emt 0:01:04]} 34. Bd5 {[%emt 0:02:19]} f5 {[%emt 0:00:09]} 35. f4+ {[%emt 0:01:21]} Kxf4 {[%emt 0:00:01]} 36. Rhf1+ {[%emt 0:00:08]} Ke3 {[%emt 0:00:58]} 37. Rxf5 {[%emt 0:00:19]} d3 {[%emt 0:01:51]} 38. b4 {[%emt 0:00:29]} Ne6 {[%emt 0:02:05]} 39. Rxf7 {[%emt 0:03:44]} Nf4 {[%emt 0:00:29]} 40. Rxf4 {[%emt 0:00:39]} Kxf4 {[%emt 0:00:07]} 41. Rxd3 {[%emt 0:00:05]} Rhg6 {[%emt 0:01:32]} 42. a4 {[%emt 0:02:01]} h4 {[%emt 0:00:08]} 43. a5 {[%emt 0:00:54]} bxa5 {[%emt 0:00:02]} 44. bxa5 {[%emt 0:00:03]} Rg3 {[%emt 0:00:50]} 45. Kc5 {[%emt 0:01:49]} Ra6 {[%emt 0:01:49]} 46. Kd4 {[%emt 0:00:14]} Rxa5 {[%emt 0:00:47]} 47. Be6 {[%emt 0:00:15]} Ra4+ {[%emt 0:00:18]} 48. Bc4 {[%emt 0:00:09]} Rxd3+ {[%emt 0:01:34]} 49. Kxd3 {[%emt 0:00:01]} Ra3+ {[%emt 0:00:23]} 50. Kd4 {[%emt 0:00:22]} Rxh3 {[%emt 0:00:10]} 51. e5 {[%emt 0:00:06]} Rh1 {[%emt 0:03:14]} 52. e6 {[%emt 0:00:26]} Re1 {[%emt 0:02:28]} 53. Kd5 {[%emt 0:00:24]} Kf5 {[%emt 0:00:31]} 54. Kd6 {[%emt 0:00:09]} Kf6 {[%emt 0:01:13]} 55. Bb3 {[%emt 0:00:31]} h3 {[%emt 0:00:57]} 56. Bc4 {[%emt 0:00:08]} h2 {[%emt 0:00:11]} 57. Bd5 {[%emt 0:00:04]} Rxe6+ {[%emt 0:00:51]} 0-1

[Event "Portuguese-ch U14-20 2022"]
[Site "Fatima"]
[Date "2022.04.11"]
[Round "3.16"]
[White "Fonseca, Pedro Miguel Ramos"]
[Black "Asseiceiro, Lucas Teixeira"]
[Result "1-0"]
[ECO "C45"]
[WhiteElo "1788"]
[BlackElo "1580"]
[Annotator "NA RC"]
[PlyCount "47"]
[EventDate "2022.04.10"]
[EventType "swiss"]
[EventCountry "POR"]
[SourceTitle "playchess.com"]
[Source "ChessBase"]
[SourceQuality "1"]
[TimeControl "5400+30"]

1. e4 e5 2. Nf3 Nc6 3. d4 exd4 4. Nxd4 Bc5 5. Nb3 Bb6 6. Nc3 a6 7. a4 d6 8. Bc4 Nf6 9. Bg5 h6 10. Bh4 Be6 11. Nd5 Bxd5 12. Bxd5 g5 13. Bg3 Qd7 14. Qf3 Nxd5 15. exd5 Qe7+ 16. Kd2 Ne5 17. Qf5 f6 18. Rae1 Qd7 19. Qxf6 Rf8 20. Qg6+ Kd8 21. Qxh6 Qxa4 22. Qxf8+ Kd7 23. Qf5+ Kd8 24. Bxe5 1-0

[Event "Portuguese-ch U14-20 2022"]
[Site "Fatima"]
[Date "2022.04.11"]
[Round "3.17"]
[White "Bastiao, Tomas"]
[Black "Medeiros, Joao"]
[Result "1-0"]
[ECO "A16"]
[WhiteElo "1664"]
[BlackElo "1331"]
[Annotator "NA RC"]
[PlyCount "87"]
[EventDate "2022.04.10"]
[EventType "swiss"]
[EventCountry "POR"]
[SourceTitle "playchess.com"]
[Source "ChessBase"]
[SourceQuality "1"]
[TimeControl "5400+30"]

1. c4 {[%emt 0:04:58]} Nf6 {[%emt 0:00:05]} 2. Nc3 {[%emt 0:01:20]} g6 {[%emt 0:00:06]} 3. e4 {[%emt 0:00:14]} d6 {[%emt 0:00:28]} 4. g3 {[%emt 0:01:12]} Bg7 {[%emt 0:00:10]} 5. Bg2 {[%emt 0:00:06]} O-O {[%emt 0:00:09]} 6. Nge2 {[%emt 0:00:04]} e5 {[%emt 0:00:49]} 7. O-O {[%emt 0:00:09]} c6 {[%emt 0:00:38]} 8. d3 {[%emt 0:00:42]} Re8 {[%emt 0:02:15]} 9. h3 {[%emt 0:03:21]} Be6 {[%emt 0:16:37]} 10. f4 {[%emt 0:01:58]} exf4 11. Nxf4 {[%emt 0:18:53]} Nbd7 {[%emt 0:19:28]} 12. Qc2 {[%emt 0:19:13]} Nb6 {[%emt 0:07:54]} 13. a4 {[%emt 0:04:12]} a5 {[%emt 0:16:41]} 14. Qb3 {[%emt 0:14:46]} Nfd7 {[%emt 0:05:42]} 15. Be3 {[%emt 0:02:35]} Be5 {[%emt 0:08:04]} 16. Rae1 {[%emt 0:06:20]} Qc7 {[%emt 0:11:09]} 17. Qc2 {[%emt 0:01:08]} Bxf4 18. gxf4 {[%emt 0:01:38]} f5 {[%emt 0:02:29]} 19. b3 {[%emt 0:02:10]} Nf6 {[%emt 0:01:52]} 20. e5 {[%emt 0:00:46]} dxe5 {[%emt 0:00:34]} 21. fxe5 {[%emt 0:00:01]} Nh5 {[%emt 0:01:26]} 22. Qf2 {[%emt 0:03:38]} Nd7 {[%emt 0:01:23]} 23. d4 {[%emt 0:00:19]} f4 {[%emt 0:03:21]} 24. Bxf4 {[%emt 0:00:52]} Rf8 {[%emt 0:00:06]} 25. Qe3 {[%emt 0:00:11]} Nxf4 {[%emt 0:00:47]} 26. Rxf4 Rxf4 {[%emt 0:00:01]} 27. Qxf4 {[%emt 0:00:02]} Rf8 28. Qe3 {[%emt 0:04:47]} Nb6 {[%emt 0:01:25]} 29. d5 {[%emt 0:01:12]} Bf5 {[%emt 0:00:43]} 30. d6 {[%emt 0:00:41]} Qd8 {[%emt 0:00:23]} 31. c5 {[%emt 0:00:16]} Nc8 {[%emt 0:00:39]} 32. Ne4 {[%emt 0:02:17]} Kg7 {[%emt 0:00:25]} 33. Nc3 {[%emt 0:02:28]} Re8 {[%emt 0:00:34]} 34. Ne2 {[%emt 0:00:18]} Qd7 {[%emt 0:00:13]} 35. Nd4 {[%emt 0:00:37]} Be6 {[%emt 0:00:30]} 36. Rd1 {[%emt 0:00:00]} h6 {[%emt 0:00:48]} 37. Qf4 {[%emt 0:01:37]} Rf8 {[%emt 0:00:33]} 38. Nxe6+ {[%emt 0:00:34]} Qxe6 {[%emt 0:00:12]} 39. Qxf8+ {[%emt 0:00:08]} Kxf8 {[%emt 0:00:07]} 40. d7 {[%emt 0:00:04]} Ne7 {[%emt 0:01:08]} 41. Rf1+ {[%emt 0:00:40]} Nf5 {[%emt 0:00:34]} 42. d8=Q+ {[%emt 0:00:14]} Kg7 {[%emt 0:00:08]} 43. Qc7+ {[%emt 0:00:33]} Ne7 {[%emt 0:00:22]} 44. Rf6 {[%emt 0:01:03]} 1-0

[Event "Portuguese-ch U14-20 2022"]
[Site "Fatima"]
[Date "2022.04.11"]
[Round "3.18"]
[White "Duque, Raquel Dos Santos"]
[Black "Gomes, Guilherme Rodrigues"]
[Result "1-0"]
[ECO "A10"]
[WhiteElo "1510"]
[BlackElo "1899"]
[Annotator "NA RC"]
[PlyCount "67"]
[EventDate "2022.04.10"]
[EventType "swiss"]
[EventCountry "POR"]
[SourceTitle "playchess.com"]
[Source "ChessBase"]
[SourceQuality "1"]
[TimeControl "5400+30"]

1. c4 {[%emt 0:00:03]} Nc6 {[%emt 0:03:44]} 2. Nc3 {[%emt 0:00:17]} e5 {[%emt 0:00:47]} 3. g3 {[%emt 0:00:16]} Bc5 {[%emt 0:01:53]} 4. Bg2 {[%emt 0:00:14]} Nf6 {[%emt 0:01:44]} 5. e3 {[%emt 0:00:22]} O-O {[%emt 0:00:32]} 6. Nge2 {[%emt 0:00:08]} Ng4 {[%emt 0:06:11]} 7. O-O {[%emt 0:00:35]} f5 {[%emt 0:02:33]} 8. a3 {[%emt 0:01:38]} e4 {[%emt 0:05:08]} 9. b4 {[%emt 0:00:56]} Be7 {[%emt 0:02:28]} 10. d4 {[%emt 0:02:44]} Bf6 {[%emt 0:03:04]} 11. Bb2 {[%emt 0:04:42]} d6 {[%emt 0:03:57]} 12. Nf4 {[%emt 0:06:54]} Ne7 {[%emt 0:06:47]} 13. Rb1 {[%emt 0:05:53]} b6 {[%emt 0:02:24]} 14. Qe2 {[%emt 0:03:12]} a5 {[%emt 0:03:38]} 15. b5 {[%emt 0:02:13]} Bb7 $2 {[%emt 0:03:02]} (15... Bg5 $16 {keeps fighting.}) 16. Ne6 {[%emt 0:00:38]} Qe8 {[%emt 0:03:02]} 17. Nxf8 {[%emt 0:01:30]} Qxf8 {[%emt 0:00:14]} 18. Nxe4 {[%emt 0:00:22]} Re8 {[%emt 0:01:52]} 19. Nxf6+ {[%emt 0:00:20]} gxf6 {[%emt 0:00:05]} 20. Bxb7 {[%emt 0:00:26]} Kh8 {[%emt 0:02:32]} 21. h3 {[%emt 0:01:30]} Nh6 {[%emt 0:04:41]} 22. Rfc1 {[%emt 0:02:52]} Rb8 {[%emt 0:01:46]} 23. Bg2 {[%emt 0:00:16]} d5 {[%emt 0:01:44]} 24. cxd5 {[%emt 0:00:26]} Qd8 {[%emt 0:02:05]} 25. Qc4 {[%emt 0:00:37]} Qd6 {[%emt 0:03:26]} 26. Qxc7 {[%emt 0:00:24]} Qxc7 {[%emt 0:00:27]} 27. Rxc7 {[%emt 0:00:10]} Nhg8 {[%emt 0:00:39]} 28. d6 {[%emt 0:00:14]} Re8 {[%emt 0:01:27]} 29. dxe7 {[%emt 0:00:18]} Nxe7 {[%emt 0:00:58]} 30. d5 {[%emt 0:00:10]} Nc8 {[%emt 0:01:13]} 31. d6 {[%emt 0:00:44]} Nxd6 {[%emt 0:00:39]} 32. Bxf6+ {[%emt 0:00:10]} Kg8 {[%emt 0:01:02]} 33. Bd5+ {[%emt 0:00:15]} Kf8 {[%emt 0:00:31]} 34. Bg7# {[%emt 0:00:13]} 1-0

[Event "Portuguese-ch U14-20 2022"]
[Site "Fatima"]
[Date "2022.04.11"]
[Round "3.19"]
[White "Monteiro, Simao Costa"]
[Black "Rodrigues, Jose Pedro Da Costa"]
[Result "1-0"]
[ECO "B12"]
[WhiteElo "1346"]
[BlackElo "1533"]
[Annotator "NA RC"]
[PlyCount "127"]
[EventDate "2022.04.10"]
[EventType "swiss"]
[EventCountry "POR"]
[SourceTitle "playchess.com"]
[Source "ChessBase"]
[SourceQuality "1"]
[TimeControl "5400+30"]

1. e4 c6 2. d4 d5 3. e5 Bf5 4. f4 e6 5. Nf3 h6 6. Bd3 Bxd3 7. Qxd3 Qa5+ 8. c3 Qa6 9. Qc2 Ne7 10. Be3 Nd7 11. b4 Rc8 12. Nbd2 b6 13. a4 c5 14. b5 Qb7 15. Qd3 Nf5 16. O-O Be7 17. Bf2 h5 18. h3 h4 19. Nh2 O-O 20. Ng4 Rc7 21. Ne3 Nxe3 22. Bxe3 f5 23. Bf2 Kf7 24. Qe2 Rh8 25. Nf3 Nf8 26. Ra2 Ng6 27. Be3 Rhc8 28. Bd2 cxd4 29. Nxd4 Bc5 30. Qd3 Rg8 31. Kh2 Bxd4 32. Qxd4 Nf8 33. Qf2 Rh8 34. g3 hxg3+ 35. Qxg3 Nd7 36. Rg1 Rg8 37. Qg6+ Ke7 38. Qh7 Kf7 39. Qg6+ Ke7 40. Be1 Nc5 41. Bh4+ Kf8 42. Rag2 Rh8 43. Bf6 Rg8 44. Qh7 Nd3 45. Bxg7+ Rcxg7 46. Rxg7 Qxg7 47. Rxg7 Rxg7 48. Qh8+ Kf7 49. Qh6 Rg6 50. Qh4 Nc5 51. Qd8 Rg7 52. Qf6+ Kg8 53. h4 Rf7 54. Qd8+ Kh7 55. Qd6 Rg7 56. a5 Rb7 57. h5 Kh6 58. Qc6 Kxh5 59. a6 Rh7 60. Kg2 Kg4 61. Qe8 Kxf4 62. Qg6 Rh4 63. Qg3+ Ke4 64. Qxh4+ 1-0

[Event "Portuguese-ch U14-20 2022"]
[Site "Fatima"]
[Date "2022.04.11"]
[Round "3.20"]
[White "Ferreira, Tiago Filipe Quiteri"]
[Black "Oliveira, Maria Elisa Ramos Ma"]
[Result "0-1"]
[ECO "A45"]
[WhiteElo "1699"]
[BlackElo "1316"]
[Annotator "NA RC"]
[PlyCount "58"]
[EventDate "2022.04.10"]
[EventType "swiss"]
[EventCountry "POR"]
[SourceTitle "playchess.com"]
[Source "ChessBase"]
[SourceQuality "1"]
[TimeControl "5400+30"]

1. d4 {[%emt 0:00:02]} Nf6 {[%emt 0:00:08]} 2. Bf4 {[%emt 0:00:24]} e6 {[%emt 0:00:11]} 3. e3 {[%emt 0:00:30]} b6 {[%emt 0:00:20]} 4. Bd3 {[%emt 0:01:09]} Bb7 {[%emt 0:00:18]} 5. Nf3 {[%emt 0:00:14]} d6 {[%emt 0:02:03]} 6. Nbd2 {[%emt 0:02:42]} Be7 {[%emt 0:00:53]} 7. c3 {[%emt 0:00:41]} Nbd7 {[%emt 0:02:00]} 8. O-O {[%emt 0:01:29]} O-O {[%emt 0:01:17]} 9. Qc2 {[%emt 0:03:05]} Re8 {[%emt 0:03:17]} 10. Rfe1 {[%emt 0:06:22]} h6 {[%emt 0:15:14]} 11. Qd1 {[%emt 0:07:15]} c5 {[%emt 0:05:39]} 12. a4 {[%emt 0:07:19]} Qc7 {[%emt 0:02:45]} 13. e4 {[%emt 0:06:07]} Nh5 {[%emt 0:05:53]} 14. Be3 {[%emt 0:02:54]} Nhf6 {[%emt 0:02:36]} 15. e5 {[%emt 0:06:39]} dxe5 {[%emt 0:01:50]} 16. dxe5 {[%emt 0:02:36]} Nd5 {[%emt 0:03:58]} 17. a5 {[%emt 0:06:37]} Red8 {[%emt 0:06:32]} 18. Ra4 {[%emt 0:03:20]} Nf8 {[%emt 0:05:46]} 19. a6 {[%emt 0:03:15]} Bc6 {[%emt 0:00:21]} 20. Rg4 {[%emt 0:04:08]} Nxe3 {[%emt 0:03:24]} 21. Rxe3 {[%emt 0:00:13]} b5 {[%emt 0:05:25]} 22. Be4 {[%emt 0:03:49]} Rd7 {[%emt 0:02:43]} 23. Qc2 {[%emt 0:02:11]} Rad8 {[%emt 0:01:31]} 24. Bxc6 {[%emt 0:01:27]} Qxc6 {[%emt 0:00:06]} 25. Ne4 {[%emt 0:00:44]} Ng6 {[%emt 0:01:46]} 26. Nf6+ {[%emt 0:02:34]} Bxf6 {[%emt 0:03:19]} 27. exf6 {[%emt 0:02:03]} gxf6 {[%emt 0:02:13]} 28. Qe4 {[%emt 0:05:39]} Qxe4 {[%emt 0:00:30]} 29. Rexe4 {[%emt 0:00:19]} f5 {[%emt 0:00:07]} 0-1